[Event "Early-Titled-Tuesday-Blitz-February-20-2024"]
[Site "Chess.com"]
[Date "2024.02.20"]
[Round "5"]
[White "Agentxya"]
[Black "Casper"]
[Result "0-1"]
[WhiteElo "2230"]
[BlackElo "2535"]
[TimeControl "180+1"]
[EndTime "8:53:59 PST"]
[Termination "Casper won by resignation"]

1. e4 {[%clk 0:02:58.8]} 1... g6 {[%clk 0:02:55.9]} 2. d4 {[%clk 0:02:58.3]}
2... Bg7 {[%clk 0:02:56.8]} 3. Nc3 {[%clk 0:02:53.7]} 3... d6 {[%clk 0:02:56.9]}
4. Be3 {[%clk 0:02:53.2]} 4... Nd7 {[%clk 0:02:57.1]} 5. Qd2 {[%clk 0:02:51.8]}
5... a6 {[%clk 0:02:56.3]} 6. O-O-O {[%clk 0:02:44.8]} 6... b5 {[%clk
0:02:55.8]} 7. f4 {[%clk 0:02:38.8]} 7... Nb6 {[%clk 0:02:53.9]} 8. Bd3 {[%clk
0:02:37.5]} 8... c6 {[%clk 0:02:53.2]} 9. Nf3 {[%clk 0:02:37]} 9... Nc4 {[%clk
0:02:51.9]} 10. Bxc4 {[%clk 0:02:34.8]} 10... bxc4 {[%clk 0:02:52.8]} 11. d5
{[%clk 0:02:21.2]} 11... c5 {[%clk 0:02:41.5]} 12. Ne2 {[%clk 0:02:15.9]} 12...
Rb8 {[%clk 0:02:38.4]} 13. c3 {[%clk 0:02:15.9]} 13... Qa5 {[%clk 0:02:36.9]}
14. a3 {[%clk 0:02:06.4]} 14... Nf6 {[%clk 0:02:34.4]} 15. Ng3 {[%clk
0:02:05.6]} 15... O-O {[%clk 0:02:02.2]} 16. h3 {[%clk 0:02:04.8]} 16... Nd7
{[%clk 0:01:53.7]} 17. e5 {[%clk 0:01:09.2]} 17... dxe5 {[%clk 0:01:28.3]} 18.
fxe5 {[%clk 0:01:09.3]} 18... Nxe5 {[%clk 0:01:29.2]} 19. Nxe5 {[%clk
0:01:09.4]} 19... Bxe5 {[%clk 0:01:30.1]} 20. Ne4 {[%clk 0:01:09.5]} 20... Bf5
{[%clk 0:01:30.2]} 21. Nxc5 {[%clk 0:00:59.4]} 21... Qxa3 {[%clk 0:01:30.4]} 22.
Qe2 {[%clk 0:00:34.7]} 22... Bxc3 {[%clk 0:01:28.8]} 0-1

[Event "Early-Titled-Tuesday-Blitz-February-20-2024"]
[Site "Chess.com"]
[Date "2024.02.20"]
[Round "5"]
[White "sewlins"]
[Black "Kapitan_Bayan"]
[Result "0-1"]
[WhiteElo "2132"]
[BlackElo "2358"]
[TimeControl "180+1"]
[EndTime "8:54:04 PST"]
[Termination "Kapitan_Bayan won by resignation"]

1. e4 {[%clk 0:02:56.7]} 1... c5 {[%clk 0:03:00]} 2. Nf3 {[%clk 0:02:54.4]} 2...
d6 {[%clk 0:03:00.3]} 3. d4 {[%clk 0:02:53.8]} 3... cxd4 {[%clk 0:03:00.9]} 4.
Nxd4 {[%clk 0:02:52.9]} 4... Nf6 {[%clk 0:03:01.5]} 5. Nc3 {[%clk 0:02:49.2]}
5... a6 {[%clk 0:03:01.9]} 6. Bg5 {[%clk 0:02:43.1]} 6... e6 {[%clk 0:02:59.8]}
7. f4 {[%clk 0:02:34.3]} 7... Nbd7 {[%clk 0:02:58.3]} 8. Qe2 {[%clk 0:02:19.8]}
8... h6 {[%clk 0:02:57]} 9. Bh4 {[%clk 0:02:05.9]} 9... Qc7 {[%clk 0:02:45.7]}
10. O-O-O {[%clk 0:02:04.9]} 10... b5 {[%clk 0:02:44.5]} 11. a3 {[%clk
0:01:56.9]} 11... Bb7 {[%clk 0:02:44]} 12. g4 {[%clk 0:01:52.4]} 12... O-O-O
{[%clk 0:02:39.1]} 13. Bg2 {[%clk 0:01:46.3]} 13... Be7 {[%clk 0:02:36.2]} 14.
Ndxb5 {[%clk 0:01:20.5]} 14... axb5 {[%clk 0:02:33.1]} 15. Nxb5 {[%clk
0:01:21.4]} 15... Qb6 {[%clk 0:02:08.2]} 16. Bf2 {[%clk 0:01:10.7]} 16... Nc5
{[%clk 0:02:07.7]} 17. b4 {[%clk 0:00:42.4]} 17... Ba6 {[%clk 0:02:07]} 18. bxc5
{[%clk 0:00:26.7]} 18... Qxb5 {[%clk 0:02:05.5]} 19. Qxb5 {[%clk 0:00:20.3]}
19... Bxb5 {[%clk 0:02:05.5]} 20. cxd6 {[%clk 0:00:20.7]} 20... Bxd6 {[%clk
0:02:03.2]} 21. Kb2 {[%clk 0:00:18.5]} 21... Bxf4 {[%clk 0:01:58.6]} 22. Bd4
{[%clk 0:00:17.1]} 22... Rxd4 {[%clk 0:01:56.2]} 23. Rxd4 {[%clk 0:00:17]} 23...
Be5 {[%clk 0:01:56.4]} 24. c3 {[%clk 0:00:17.8]} 24... Bxd4 {[%clk 0:01:56]} 25.
cxd4 {[%clk 0:00:18.7]} 25... Rd8 {[%clk 0:01:54.5]} 26. Rc1+ {[%clk 0:00:19.4]}
26... Kb8 {[%clk 0:01:54]} 27. Kc3 {[%clk 0:00:18.5]} 27... Rc8+ {[%clk
0:01:50.6]} 28. Kd2 {[%clk 0:00:18.9]} 0-1

[Event "Early-Titled-Tuesday-Blitz-February-20-2024"]
[Site "Chess.com"]
[Date "2024.02.20"]
[Round "5"]
[White "krzysztofszczurek"]
[Black "JiaHaoxiang"]
[Result "0-1"]
[WhiteElo "2488"]
[BlackElo "2623"]
[TimeControl "180+1"]
[EndTime "8:54:11 PST"]
[Termination "JiaHaoxiang won by resignation"]

1. d4 {[%clk 0:03:00.9]} 1... Nf6 {[%clk 0:02:53.4]} 2. Nc3 {[%clk 0:03:00.4]}
2... g6 {[%clk 0:02:52.2]} 3. e4 {[%clk 0:03:00.3]} 3... d6 {[%clk 0:02:52.7]}
4. Nf3 {[%clk 0:03:00.2]} 4... Bg7 {[%clk 0:02:53.2]} 5. Be2 {[%clk 0:02:58.6]}
5... O-O {[%clk 0:02:53.3]} 6. Be3 {[%clk 0:02:57.3]} 6... c6 {[%clk 0:02:51]}
7. Qd2 {[%clk 0:02:57.2]} 7... b5 {[%clk 0:02:49.5]} 8. a3 {[%clk 0:02:55.4]}
8... a5 {[%clk 0:02:48.8]} 9. Bd3 {[%clk 0:02:50.2]} 9... Nbd7 {[%clk
0:02:45.8]} 10. Rd1 {[%clk 0:02:42.2]} 10... b4 {[%clk 0:02:21.9]} 11. axb4
{[%clk 0:02:35.2]} 11... axb4 {[%clk 0:02:22.8]} 12. Ne2 {[%clk 0:02:35.9]}
12... Qa5 {[%clk 0:02:14.2]} 13. O-O {[%clk 0:02:31.7]} 13... Bb7 {[%clk
0:02:09.9]} 14. Nc1 {[%clk 0:02:20.7]} 14... c5 {[%clk 0:02:03.3]} 15. Nb3
{[%clk 0:02:13.8]} 15... Qc7 {[%clk 0:02:00.7]} 16. e5 {[%clk 0:01:53.4]} 16...
cxd4 {[%clk 0:01:40.4]} 17. Nfxd4 {[%clk 0:01:38.1]} 17... Nxe5 {[%clk
0:01:33.6]} 18. Qxb4 {[%clk 0:01:34.9]} 18... Nd5 {[%clk 0:01:31]} 19. Qd2
{[%clk 0:01:31.6]} 19... Nxd3 {[%clk 0:01:16.6]} 20. Qxd3 {[%clk 0:01:26.6]}
20... Ba6 {[%clk 0:01:14.9]} 21. Qe4 {[%clk 0:01:17.8]} 21... Nxe3 {[%clk
0:01:11]} 22. fxe3 {[%clk 0:01:14]} 22... Bxf1 {[%clk 0:01:11.2]} 23. Rxf1
{[%clk 0:01:14.9]} 23... e6 {[%clk 0:01:06.7]} 24. h4 {[%clk 0:01:11]} 24... d5
{[%clk 0:01:06.7]} 25. Qf3 {[%clk 0:01:08.2]} 25... e5 {[%clk 0:01:01.3]} 0-1

[Event "Early-Titled-Tuesday-Blitz-February-20-2024"]
[Site "Chess.com"]
[Date "2024.02.20"]
[Round "5"]
[White "Viktor_Poddubnyi"]
[Black "SaqoChess_Twitch"]
[Result "0-1"]
[WhiteElo "2286"]
[BlackElo "2639"]
[TimeControl "180+1"]
[EndTime "8:54:12 PST"]
[Termination "SaqoChess_Twitch won on time"]

1. e4 {[%clk 0:03:00.9]} 1... c5 {[%clk 0:03:00]} 2. Nf3 {[%clk 0:02:58.8]} 2...
d6 {[%clk 0:03:00.2]} 3. d4 {[%clk 0:02:59.4]} 3... cxd4 {[%clk 0:03:00.6]} 4.
Nxd4 {[%clk 0:03:00.3]} 4... Nf6 {[%clk 0:03:01]} 5. Nc3 {[%clk 0:03:00.8]} 5...
g6 {[%clk 0:03:01.7]} 6. Be3 {[%clk 0:03:00.7]} 6... Bg7 {[%clk 0:03:02.1]} 7.
f3 {[%clk 0:03:01.4]} 7... O-O {[%clk 0:03:02.8]} 8. Qd2 {[%clk 0:03:02]} 8...
Nc6 {[%clk 0:03:03.2]} 9. O-O-O {[%clk 0:03:02.7]} 9... d5 {[%clk 0:03:02.7]}
10. Qe1 {[%clk 0:03:03.2]} 10... Nxd4 {[%clk 0:02:59]} 11. Bxd4 {[%clk
0:03:02.6]} 11... Qa5 {[%clk 0:02:55.4]} 12. Kb1 {[%clk 0:02:37.8]} 12... dxe4
{[%clk 0:02:54.3]} 13. Nxe4 {[%clk 0:01:54.5]} 13... Qxe1 {[%clk 0:02:53.2]} 14.
Rxe1 {[%clk 0:01:49.7]} 14... Nxe4 {[%clk 0:02:52.9]} 15. Bxg7 {[%clk
0:01:46.2]} 15... Kxg7 {[%clk 0:02:52.8]} 16. Rxe4 {[%clk 0:01:45]} 16... Be6
{[%clk 0:02:50]} 17. Bd3 {[%clk 0:01:38.1]} 17... Rfd8 {[%clk 0:02:49.4]} 18.
Rhe1 {[%clk 0:01:37.9]} 18... Rd6 {[%clk 0:02:49.3]} 19. Re5 {[%clk 0:01:36.1]}
19... Rad8 {[%clk 0:02:49]} 20. Rc5 {[%clk 0:01:30.7]} 20... Bf5 {[%clk
0:02:45.8]} 21. Rxe7 {[%clk 0:01:22.7]} 21... b6 {[%clk 0:02:43.1]} 22. Rxf5
{[%clk 0:01:12.5]} 22... gxf5 {[%clk 0:02:39.8]} 23. Rxa7 {[%clk 0:01:12.7]}
23... Rg6 {[%clk 0:02:39.7]} 24. g4 {[%clk 0:01:09.8]} 24... fxg4 {[%clk
0:02:38.4]} 25. fxg4 {[%clk 0:01:04.3]} 25... Rxg4 {[%clk 0:02:37.9]} 26. b3
{[%clk 0:00:59.6]} 26... Rg1+ {[%clk 0:02:38.2]} 27. Kb2 {[%clk 0:00:59.4]}
27... Rg2 {[%clk 0:02:39.1]} 28. Bc4 {[%clk 0:00:48.1]} 28... Rdd2 {[%clk
0:02:33.4]} 29. Rxf7+ {[%clk 0:00:19.2]} 29... Kg6 {[%clk 0:02:33.4]} 30. Ka3
{[%clk 0:00:20.1]} 30... Rxc2 {[%clk 0:02:33.1]} 31. Rf3 {[%clk 0:00:07.6]}
31... Rxa2+ {[%clk 0:02:33.2]} 32. Kb4 {[%clk 0:00:08.3]} 32... Rxh2 {[%clk
0:02:33.2]} 33. Kb5 {[%clk 0:00:07.7]} 33... h5 {[%clk 0:02:32.2]} 34. Kxb6
{[%clk 0:00:07.7]} 34... h4 {[%clk 0:02:32.9]} 35. b4 {[%clk 0:00:07.5]} 35...
Raf2 {[%clk 0:02:33.2]} 36. Rxf2 {[%clk 0:00:05.6]} 36... Rxf2 {[%clk
0:02:33.1]} 37. Bd5 {[%clk 0:00:04.8]} 37... h3 {[%clk 0:02:33.1]} 38. b5 {[%clk
0:00:04.9]} 38... Kf5 {[%clk 0:02:30]} 39. Kc7 {[%clk 0:00:04.9]} 39... Ke5
{[%clk 0:02:29.8]} 40. Bh1 {[%clk 0:00:04.5]} 40... Rf1 {[%clk 0:02:29.6]} 41.
Ba8 {[%clk 0:00:01.9]} 41... Rc1+ {[%clk 0:02:26.2]} 0-1

[Event "Early-Titled-Tuesday-Blitz-February-20-2024"]
[Site "Chess.com"]
[Date "2024.02.20"]
[Round "5"]
[White "bylavochka"]
[Black "Mikhail_Golubev"]
[Result "0-1"]
[WhiteElo "2298"]
[BlackElo "2641"]
[TimeControl "180+1"]
[EndTime "8:54:33 PST"]
[Termination "Mikhail_Golubev won on time"]

1. e4 {[%clk 0:02:57]} 1... c5 {[%clk 0:03:00.1]} 2. Nf3 {[%clk 0:02:56.7]} 2...
d6 {[%clk 0:03:00.2]} 3. d4 {[%clk 0:02:53.1]} 3... Nf6 {[%clk 0:03:00.1]} 4.
Nc3 {[%clk 0:02:50.4]} 4... cxd4 {[%clk 0:03:00]} 5. Nxd4 {[%clk 0:02:51.3]}
5... Nc6 {[%clk 0:03:00.1]} 6. f3 {[%clk 0:02:45]} 6... e5 {[%clk 0:02:57.3]} 7.
Nb3 {[%clk 0:02:43.5]} 7... Be7 {[%clk 0:02:57.3]} 8. Be3 {[%clk 0:02:43.4]}
8... O-O {[%clk 0:02:56.6]} 9. Qd2 {[%clk 0:02:43.8]} 9... a5 {[%clk 0:02:56.7]}
10. a4 {[%clk 0:02:42.3]} 10... Be6 {[%clk 0:02:52.4]} 11. Bb5 {[%clk
0:02:32.6]} 11... Nb4 {[%clk 0:02:46.6]} 12. O-O {[%clk 0:02:29.4]} 12... d5
{[%clk 0:02:40.1]} 13. exd5 {[%clk 0:02:22.9]} 13... Nfxd5 {[%clk 0:02:39.7]}
14. Nxd5 {[%clk 0:02:18.5]} 14... Qxd5 {[%clk 0:02:38.8]} 15. Qxd5 {[%clk
0:02:09.2]} 15... Bxd5 {[%clk 0:02:38.4]} 16. Nc5 {[%clk 0:02:05.3]} 16... Nxc2
{[%clk 0:02:29.1]} 17. Bf2 {[%clk 0:01:27]} 17... Nxa1 {[%clk 0:02:28.8]} 18.
Rxa1 {[%clk 0:01:27.9]} 18... Bxc5 {[%clk 0:02:20.7]} 19. Bxc5 {[%clk
0:01:28.8]} 19... Rfc8 {[%clk 0:02:19.5]} 20. Bd6 {[%clk 0:01:10.8]} 20... f6
{[%clk 0:02:03.3]} 21. Rd1 {[%clk 0:01:10.4]} 21... Bc6 {[%clk 0:01:54.2]} 22.
Bc4+ {[%clk 0:01:05.9]} 22... Kh8 {[%clk 0:01:54.3]} 23. Bb3 {[%clk 0:00:40.5]}
23... Rd8 {[%clk 0:01:50.9]} 24. Kf2 {[%clk 0:00:38.1]} 24... Ra6 {[%clk
0:01:33.5]} 25. f4 {[%clk 0:00:19.5]} 25... Bxa4 {[%clk 0:01:26.7]} 26. Bxa4
{[%clk 0:00:10.2]} 26... Raxd6 {[%clk 0:01:26.6]} 0-1

[Event "Early-Titled-Tuesday-Blitz-February-20-2024"]
[Site "Chess.com"]
[Date "2024.02.20"]
[Round "5"]
[White "dealshark"]
[Black "Kotlyar_K"]
[Result "1-0"]
[WhiteElo "2425"]
[BlackElo "2582"]
[TimeControl "180+1"]
[EndTime "8:54:40 PST"]
[Termination "dealshark won by resignation"]

1. Nf3 {[%clk 0:02:58.7]} 1... Nf6 {[%clk 0:03:00]} 2. g3 {[%clk 0:02:58.5]}
2... g6 {[%clk 0:03:00.1]} 3. Bg2 {[%clk 0:02:58.8]} 3... Bg7 {[%clk 0:03:00.5]}
4. O-O {[%clk 0:02:59.4]} 4... O-O {[%clk 0:02:57.2]} 5. c4 {[%clk 0:02:59.9]}
5... c6 {[%clk 0:02:57.3]} 6. Nc3 {[%clk 0:02:59.7]} 6... d5 {[%clk 0:02:57.6]}
7. cxd5 {[%clk 0:02:59.6]} 7... cxd5 {[%clk 0:02:57.9]} 8. d4 {[%clk 0:02:59.6]}
8... Ne4 {[%clk 0:02:58.1]} 9. Bf4 {[%clk 0:02:56.1]} 9... Nxc3 {[%clk
0:02:35.3]} 10. bxc3 {[%clk 0:02:57]} 10... Nc6 {[%clk 0:02:34.3]} 11. Rb1
{[%clk 0:02:55.4]} 11... e6 {[%clk 0:02:31.7]} 12. Qd2 {[%clk 0:02:43.4]} 12...
Re8 {[%clk 0:02:22.1]} 13. Bh6 {[%clk 0:02:42.1]} 13... Bh8 {[%clk 0:02:21.3]}
14. h4 {[%clk 0:02:35.4]} 14... Na5 {[%clk 0:02:19.1]} 15. h5 {[%clk 0:02:26.8]}
15... Nc4 {[%clk 0:02:15.6]} 16. Qc1 {[%clk 0:02:26.8]} 16... Qa5 {[%clk
0:02:08.5]} 17. hxg6 {[%clk 0:02:23.9]} 17... hxg6 {[%clk 0:02:04.4]} 18. Bg5
{[%clk 0:02:07.6]} 18... e5 {[%clk 0:01:54.6]} 19. dxe5 {[%clk 0:01:55.6]} 19...
Nxe5 {[%clk 0:01:54.5]} 20. Qf4 {[%clk 0:01:40.3]} 20... Nxf3+ {[%clk
0:01:26.3]} 21. Bxf3 {[%clk 0:01:40.1]} 21... Bxc3 {[%clk 0:01:21.9]} 22. Rfd1
{[%clk 0:01:33.2]} 22... d4 {[%clk 0:01:03.4]} 23. Bf6 {[%clk 0:01:24.2]} 23...
d3 {[%clk 0:01:03.5]} 24. Bxc3 {[%clk 0:01:09.8]} 24... Qxc3 {[%clk 0:01:04.4]}
25. Rxd3 {[%clk 0:01:08.8]} 25... Qc2 {[%clk 0:01:04.8]} 26. Rc1 {[%clk
0:01:06.4]} 26... Qxa2 {[%clk 0:01:02.2]} 27. Bd5 {[%clk 0:00:58.9]} 27... Qa4
{[%clk 0:00:36.3]} 28. Qxa4 {[%clk 0:00:53]} 1-0

[Event "Early-Titled-Tuesday-Blitz-February-20-2024"]
[Site "Chess.com"]
[Date "2024.02.20"]
[Round "5"]
[White "rikchessmx"]
[Black "Bilan_Danila"]
[Result "0-1"]
[WhiteElo "2239"]
[BlackElo "2472"]
[TimeControl "180+1"]
[EndTime "8:54:41 PST"]
[Termination "Bilan_Danila won by resignation"]

1. e4 {[%clk 0:02:56.8]} 1... c6 {[%clk 0:02:47.1]} 2. d4 {[%clk 0:02:54.3]}
2... d5 {[%clk 0:02:48]} 3. Nc3 {[%clk 0:02:54.1]} 3... b5 {[%clk 0:02:47.1]} 4.
exd5 {[%clk 0:02:52.7]} 4... b4 {[%clk 0:02:46.9]} 5. Nce2 {[%clk 0:02:51.1]}
5... cxd5 {[%clk 0:02:46.9]} 6. Be3 {[%clk 0:02:51]} 6... Nf6 {[%clk 0:02:46.9]}
7. Ng3 {[%clk 0:02:50.4]} 7... Nc6 {[%clk 0:02:46.4]} 8. Nf3 {[%clk 0:02:50.5]}
8... Bg4 {[%clk 0:02:43.6]} 9. h3 {[%clk 0:02:50.2]} 9... Bxf3 {[%clk 0:02:41]}
10. Qxf3 {[%clk 0:02:50.7]} 10... e6 {[%clk 0:02:40.7]} 11. Be2 {[%clk
0:02:44.6]} 11... Be7 {[%clk 0:02:36.6]} 12. O-O {[%clk 0:02:44.2]} 12... O-O
{[%clk 0:02:36.2]} 13. c4 {[%clk 0:02:43.9]} 13... bxc3 {[%clk 0:02:28.6]} 14.
bxc3 {[%clk 0:02:44.8]} 14... Na5 {[%clk 0:02:27.1]} 15. Rfc1 {[%clk 0:02:37.5]}
15... Rc8 {[%clk 0:02:21.7]} 16. Bg5 {[%clk 0:02:30.4]} 16... Nc4 {[%clk
0:02:16.7]} 17. Bd3 {[%clk 0:02:27.7]} 17... g6 {[%clk 0:02:11.4]} 18. Bf4
{[%clk 0:02:17.3]} 18... Nd7 {[%clk 0:01:49.2]} 19. Bh6 {[%clk 0:02:12.7]} 19...
Re8 {[%clk 0:01:47]} 20. Nf1 {[%clk 0:02:09.5]} 20... Bg5 {[%clk 0:01:46]} 21.
Bxg5 {[%clk 0:02:08.2]} 21... Qxg5 {[%clk 0:01:46.9]} 22. Ne3 {[%clk 0:02:08.2]}
22... Ndb6 {[%clk 0:01:33.2]} 23. a4 {[%clk 0:02:06.8]} 23... a5 {[%clk
0:01:23.5]} 24. Ng4 {[%clk 0:02:01.2]} 24... Kg7 {[%clk 0:01:18.3]} 25. Rcb1
{[%clk 0:01:46.3]} 25... Nd2 {[%clk 0:01:10.9]} 26. Qf6+ {[%clk 0:01:26]} 26...
Qxf6 {[%clk 0:01:05.4]} 27. Nxf6 {[%clk 0:01:25.6]} 27... Kxf6 {[%clk
0:00:48.8]} 28. Rxb6 {[%clk 0:01:24.3]} 28... Rxc3 {[%clk 0:00:48.9]} 29. Bb5
{[%clk 0:01:22.6]} 29... Rec8 {[%clk 0:00:43]} 30. Ra6 {[%clk 0:01:21.2]} 30...
Rc2 {[%clk 0:00:36.7]} 31. Rxa5 {[%clk 0:01:17.9]} 31... Nb3 {[%clk 0:00:36.2]}
32. Bd7 {[%clk 0:01:09.5]} 32... Nxa5 {[%clk 0:00:34.2]} 33. Bxc8 {[%clk
0:01:09.3]} 33... Rxc8 {[%clk 0:00:35.1]} 34. Rb1 {[%clk 0:01:09]} 34... Rc4
{[%clk 0:00:34.7]} 35. Rb5 {[%clk 0:01:08.8]} 35... Rxa4 {[%clk 0:00:34.7]} 36.
g3 {[%clk 0:01:08.3]} 36... Nc6 {[%clk 0:00:34.7]} 0-1

[Event "Early-Titled-Tuesday-Blitz-February-20-2024"]
[Site "Chess.com"]
[Date "2024.02.20"]
[Round "5"]
[White "Sjakkerntobi"]
[Black "Jamal-Jamal-Jamal"]
[Result "1-0"]
[WhiteElo "2503"]
[BlackElo "2272"]
[TimeControl "180+1"]
[EndTime "8:54:42 PST"]
[Termination "Sjakkerntobi won by resignation"]

1. e4 {[%clk 0:03:00.9]} 1... c6 {[%clk 0:02:59.8]} 2. Nc3 {[%clk 0:03:00.9]}
2... d5 {[%clk 0:03:00]} 3. Nf3 {[%clk 0:03:01.8]} 3... dxe4 {[%clk 0:02:59.8]}
4. Nxe4 {[%clk 0:03:02.7]} 4... Nf6 {[%clk 0:02:59.8]} 5. Qe2 {[%clk 0:03:03.4]}
5... Nxe4 {[%clk 0:02:59.5]} 6. Qxe4 {[%clk 0:03:03.5]} 6... Nd7 {[%clk
0:03:00.3]} 7. Bc4 {[%clk 0:03:03.5]} 7... Nf6 {[%clk 0:03:00.8]} 8. Ne5 {[%clk
0:03:04.3]} 8... e6 {[%clk 0:02:59.9]} 9. Qe2 {[%clk 0:03:05]} 9... b5 {[%clk
0:02:59.5]} 10. Bd3 {[%clk 0:03:05.1]} 10... Qc7 {[%clk 0:02:57.3]} 11. b3
{[%clk 0:03:05.4]} 11... Bd6 {[%clk 0:02:54.4]} 12. Bb2 {[%clk 0:03:05.5]} 12...
O-O {[%clk 0:02:49.4]} 13. O-O {[%clk 0:03:04.8]} 13... Nd5 {[%clk 0:02:48.1]}
14. f4 {[%clk 0:03:03.8]} 14... Bb7 {[%clk 0:02:22.6]} 15. Rf3 {[%clk
0:03:03.4]} 15... f6 {[%clk 0:02:15.8]} 16. Qe4 {[%clk 0:02:07.9]} 16... g6
{[%clk 0:01:56.4]} 17. Nxg6 {[%clk 0:01:39]} 17... hxg6 {[%clk 0:01:52.3]} 18.
Qxe6+ {[%clk 0:01:37.8]} 18... Kg7 {[%clk 0:01:42.5]} 19. Bxg6 {[%clk
0:01:28.5]} 19... Nxf4 {[%clk 0:01:34.6]} 20. Rxf4 {[%clk 0:00:45.9]} 20... Bxf4
{[%clk 0:01:32.1]} 21. Qg4 {[%clk 0:00:45.5]} 21... Bg5 {[%clk 0:01:22.1]} 22.
Qxg5 {[%clk 0:00:40.7]} 22... c5 {[%clk 0:00:43.7]} 23. Bf5+ {[%clk 0:00:37.7]}
23... Kf7 {[%clk 0:00:37.6]} 24. Qxf6+ {[%clk 0:00:37]} 24... Ke8 {[%clk
0:00:37.6]} 25. Re1+ {[%clk 0:00:37.1]} 1-0

[Event "Early-Titled-Tuesday-Blitz-February-20-2024"]
[Site "Chess.com"]
[Date "2024.02.20"]
[Round "5"]
[White "DeArron_Fox"]
[Black "YurasovMat-2012"]
[Result "1-0"]
[WhiteElo "2524"]
[BlackElo "2630"]
[TimeControl "180+1"]
[EndTime "8:54:43 PST"]
[Termination "DeArron_Fox won by resignation"]

1. d4 {[%clk 0:03:00.9]} 1... d5 {[%clk 0:02:56.6]} 2. c4 {[%clk 0:03:01.1]}
2... c6 {[%clk 0:02:56.2]} 3. Nc3 {[%clk 0:03:01.6]} 3... Nf6 {[%clk 0:02:55.1]}
4. e3 {[%clk 0:03:01.7]} 4... e6 {[%clk 0:02:51.4]} 5. Nf3 {[%clk 0:03:01.8]}
5... Nbd7 {[%clk 0:02:49.7]} 6. Qc2 {[%clk 0:03:02.1]} 6... Bd6 {[%clk
0:02:49.5]} 7. Bd3 {[%clk 0:03:02.7]} 7... h6 {[%clk 0:02:46]} 8. O-O {[%clk
0:03:02.1]} 8... O-O {[%clk 0:02:45.2]} 9. h3 {[%clk 0:02:57.1]} 9... dxc4
{[%clk 0:02:40.7]} 10. Bxc4 {[%clk 0:02:58]} 10... b5 {[%clk 0:02:40.6]} 11. Bd3
{[%clk 0:02:55.4]} 11... Bb7 {[%clk 0:02:40.6]} 12. e4 {[%clk 0:02:45.5]} 12...
e5 {[%clk 0:02:37]} 13. dxe5 {[%clk 0:02:44.9]} 13... Nxe5 {[%clk 0:02:36.1]}
14. Nxe5 {[%clk 0:02:45.8]} 14... Bxe5 {[%clk 0:02:36.9]} 15. Be3 {[%clk
0:02:46.3]} 15... Bd6 {[%clk 0:02:26.1]} 16. f4 {[%clk 0:02:22.7]} 16... Qe7
{[%clk 0:02:20]} 17. e5 {[%clk 0:01:49.6]} 17... Bc5 {[%clk 0:02:17.1]} 18. Rae1
{[%clk 0:01:31.5]} 18... Nd7 {[%clk 0:02:14.4]} 19. Ne4 {[%clk 0:01:12.1]} 19...
Bxe3+ {[%clk 0:02:10.6]} 20. Rxe3 {[%clk 0:01:10.9]} 20... Nb6 {[%clk
0:02:08.1]} 21. Rg3 {[%clk 0:00:43.5]} 21... Kh8 {[%clk 0:02:04.2]} 22. Nd6
{[%clk 0:00:42.6]} 22... Nd5 {[%clk 0:02:02.8]} 23. Nf5 {[%clk 0:00:30.5]} 23...
Qd8 {[%clk 0:01:54.1]} 24. Nxg7 {[%clk 0:00:19.8]} 24... Nb4 {[%clk 0:01:47.8]}
25. Qe2 {[%clk 0:00:09.6]} 25... Qh4 {[%clk 0:01:22.7]} 26. Nf5 {[%clk
0:00:08.7]} 26... Qd8 {[%clk 0:01:17.1]} 27. Qh5 {[%clk 0:00:07]} 1-0

[Event "Early-Titled-Tuesday-Blitz-February-20-2024"]
[Site "Chess.com"]
[Date "2024.02.20"]
[Round "5"]
[White "inagreV"]
[Black "ninguno46"]
[Result "0-1"]
[WhiteElo "2369"]
[BlackElo "2548"]
[TimeControl "180+1"]
[EndTime "8:54:43 PST"]
[Termination "ninguno46 won on time"]

1. e4 {[%clk 0:02:55.5]} 1... c5 {[%clk 0:02:57.3]} 2. Nf3 {[%clk 0:02:55.3]}
2... Nc6 {[%clk 0:02:55.1]} 3. Bb5 {[%clk 0:02:55]} 3... d6 {[%clk 0:02:54.4]}
4. O-O {[%clk 0:02:53.3]} 4... Bd7 {[%clk 0:02:54.4]} 5. Re1 {[%clk 0:02:53.5]}
5... Nf6 {[%clk 0:02:54.6]} 6. c3 {[%clk 0:02:53.6]} 6... a6 {[%clk 0:02:54.3]}
7. Bf1 {[%clk 0:02:51.8]} 7... Bg4 {[%clk 0:02:53.8]} 8. d4 {[%clk 0:02:47.7]}
8... cxd4 {[%clk 0:02:53.2]} 9. cxd4 {[%clk 0:02:48.6]} 9... e5 {[%clk
0:02:53.4]} 10. d5 {[%clk 0:02:48.4]} 10... Nd4 {[%clk 0:02:53.7]} 11. Be3
{[%clk 0:02:48.7]} 11... Nxf3+ {[%clk 0:02:53.5]} 12. gxf3 {[%clk 0:02:49]}
12... Bd7 {[%clk 0:02:54.1]} 13. Nd2 {[%clk 0:02:48.2]} 13... Nh5 {[%clk
0:02:54]} 14. Nc4 {[%clk 0:02:41.6]} 14... Nf4 {[%clk 0:02:47.8]} 15. Bxf4
{[%clk 0:02:32.7]} 15... exf4 {[%clk 0:02:47.3]} 16. e5 {[%clk 0:02:33.6]} 16...
Qg5+ {[%clk 0:02:46.5]} 17. Kh1 {[%clk 0:02:30.9]} 17... O-O-O {[%clk
0:02:42.7]} 18. Qd4 {[%clk 0:01:57.7]} 18... Kb8 {[%clk 0:02:40.7]} 19. Qb6
{[%clk 0:01:39.8]} 19... Bc8 {[%clk 0:02:30.7]} 20. exd6 {[%clk 0:01:28.4]}
20... h5 {[%clk 0:02:02]} 21. Re5 {[%clk 0:01:13.8]} 21... Qf6 {[%clk
0:01:55.3]} 22. Qc7+ {[%clk 0:00:59.1]} 22... Ka7 {[%clk 0:01:51.9]} 23. Qb6+
{[%clk 0:00:48.4]} 23... Ka8 {[%clk 0:01:49.5]} 24. Rc1 {[%clk 0:00:18.8]} 24...
Bxd6 {[%clk 0:01:47.6]} 25. Nxd6 {[%clk 0:00:11.6]} 25... Rxd6 {[%clk
0:01:37.8]} 26. Qd4 {[%clk 0:00:10.4]} 26... Rhd8 {[%clk 0:01:35.5]} 27. Rce1
{[%clk 0:00:02.1]} 27... Bd7 {[%clk 0:01:25.1]} 28. Qe4 {[%clk 0:00:01.5]} 28...
g6 {[%clk 0:01:20.9]} 0-1